bitfinex/quotes_SOLUSD_20240606
["timestamp","ask_amount","ask_price","bid_price","bid_amount"]
[1717694667528,6.6,172.0,171.95,50.814]
[1717694668524,6.7169847,172.03,171.95,50.814]
[1717694668700,6.6,172.0,171.95,50.814]
[1717694671917,6.7169847,172.03,171.95,50.814]
[1717694672212,6.6,172.0,171.95,50.814]
[1717694674018,6.6,172.01,171.95,50.814]
[1717694676921,6.6,172.01,171.95,45.0]
[1717694677221,6.6,172.01,171.96,45.0]
[1717694677897,0.3846847,172.03,171.96,45.0]
[1717694678093,0.3846847,172.03,171.97,6.94]
[1717694678094,6.9846847,172.03,171.97,6.94]
[1717694678298,0.3846847,172.03,172.01,6.6]
[1717694678722,0.3846847,172.03,172.02,45.0]
[1717694679394,0.3846847,172.03,172.02,165.0]
[1717694679596,0.03629602,172.04,172.03,6.3692]
[1717694679813,0.03629602,172.04,172.03,84.1232]
[1717694680306,0.03629602,172.04,172.03,71.7092]
[1717694680512,0.03629602,172.04,172.03,78.3092]
[1717694680709,0.03629602,172.04,172.03,71.7092]
[1717694680919,0.03629602,172.04,172.03,71.77]
[1717694681101,0.03629602,172.04,172.03,71.6]
[1717694681709,0.03629602,172.04,172.03,77.754]
[1717694681907,0.03629602,172.04,172.03,84.3118]
[1717694683224,0.03629602,172.04,172.03,78.4978]
[1717694688303,0.03629602,172.04,172.03,84.3118]
[1717694691733,0.03629602,172.04,172.03,78.4978]
[1717694692229,0.03629602,172.04,172.03,71.94]
[1717694698620,0.03629602,172.04,172.03,77.754]
[1717694699319,0.03629602,172.04,172.03,71.94]
[1717694699529,0.03629602,172.04,172.03,26.6]
[1717694700731,0.03629602,172.04,172.03,26.94]
[1717694700925,0.03629602,172.04,172.03,71.94]
[1717694701827,0.03629602,172.04,172.03,77.751]
[1717694703840,0.03629602,172.04,172.03,83.9173]
[1717694704843,9.602e-05,172.04,172.03,83.9173]
[1717694706438,6.8511577,172.16,172.08,120.0]
[1717694706631,6.6,172.14,172.09,20.34]
[1717694706831,6.6,172.15,172.09,26.94]
[1717694707041,6.8511577,172.16,172.09,26.94]
[1717694707226,6.8511577,172.16,172.1,6.6]
[1717694707428,13.4511577,172.16,172.1,6.6]
[1717694708131,6.8511577,172.16,172.1,6.6]
[1717694708337,13.4511577,172.16,172.1,6.6]
[1717694708545,13.4511577,172.16,172.11,45.0]
[1717694709256,6.8511577,172.16,172.11,45.0]
[1717694709746,0.8140577,172.16,172.12,120.17]
[1717694710060,0.8140577,172.16,172.13,45.17]
[1717694710351,0.8140577,172.16,172.13,51.77]
[1717694710646,0.8140577,172.16,172.13,45.17]
[1717694711347,0.8140577,172.16,172.13,51.77]
[1717694712147,0.8140577,172.16,172.13,45.17]
[1717694713344,0.8140577,172.16,172.13,51.77]
[1717694714757,0.8140577,172.16,172.13,45.17]
[1717694715254,0.8140577,172.16,172.14,20.0]
[1717694715443,0.8140577,172.16,172.15,45.0]
[1717694715751,0.8140577,172.16,172.15,65.0]
[1717694717237,0.8140577,172.16,172.07,4.64671938]
[1717694717238,7.4140577,172.16,172.07,4.64671938]
[1717694717440,6.6,172.14,172.08,126.6]
[1717694717769,0.8140577,172.16,172.11,6.6]
[1717694718068,0.8140577,172.16,172.12,6.6]
[1717694718645,0.8140577,172.16,172.13,45.0]
[1717694718931,13.6707577,172.16,172.12,45.0]
[1717694719455,7.0707577,172.16,172.11,45.0]
[1717694719660,13.6707577,172.16,172.11,45.0]
[1717694720344,13.6707577,172.16,172.12,20.0]
[1717694720659,7.0707577,172.16,172.13,45.0]
[1717694723250,0.8140577,172.16,172.13,45.0]
[1717694725365,7.2797577,172.16,172.13,45.0]
[1717694725675,0.7727577,172.16,172.15,126.6]
[1717694725901,0.7727577,172.16,172.15,71.94]
[1717694730982,0.7727577,172.16,172.15,71.77]
[1717694731278,0.7727577,172.16,172.15,65.0]
[1717694732679,0.7727577,172.16,172.15,20.0]
[1717694732880,0.7727577,172.16,172.11,125.811]
[1717694732881,0.7727577,172.16,172.14,6.6]
[1717694733175,0.7727577,172.16,172.15,20.0]
[1717694734279,0.7727577,172.16,172.15,65.0]
[1717694737154,0.7727577,172.16,172.15,191.77]
[1717694737359,0.7727577,172.16,172.15,191.94]
[1717694740174,0.7727577,172.16,172.15,214.5399]
[1717694740380,0.7727577,172.16,172.15,244.5399]
[1717694740579,0.7727577,172.16,172.15,221.915]
[1717694740960,0.7727577,172.16,172.15,221.94]
[1717694741159,0.7727577,172.16,172.15,215.34]
[1717694741384,0.7727577,172.16,172.15,81.94]
[1717694741576,0.7727577,172.16,172.15,51.94]
[1717694741967,0.7727577,172.16,172.15,6.6]
[1717694742485,0.7727577,172.16,172.15,6.77]
[1717694743391,0.7727577,172.16,172.15,71.77]
[1717694743591,0.7727577,172.16,172.15,65.34]
[1717694743790,0.7727577,172.16,172.15,71.94]
[1717694744889,0.7727577,172.16,172.15,65.34]
[1717694745094,0.7727577,172.16,172.15,71.94]
[1717694747082,0.7727577,172.16,172.15,65.34]
[1717694747571,0.7727577,172.16,172.15,71.94]
[1717694749977,0.7727577,172.16,172.15,191.94]
[1717694753408,0.7727577,172.16,172.15,198.3406]
[1717694753775,0.7727577,172.16,172.15,212.80898945]
[1717694753974,0.7727577,172.16,172.15,206.20898945]
[1717694754279,0.7727577,172.16,172.15,247.64546871]
[1717694754668,0.7727577,172.16,172.15,254.24546871]
[1717694755099,0.7727577,172.16,172.15,284.24546871]
[1717694756195,0.7727577,172.16,172.15,277.64546871]
[1717694756703,0.7727577,172.16,172.15,284.24546871]
[1717694757406,0.7727577,172.16,172.15,300.34406871]
[1717694758101,0.7727577,172.16,172.15,306.15506871]
[1717694758483,6.6,172.28,172.19,120.0]
[1717694758701,6.6,172.28,172.22,6.6]
[1717694758998,6.057,172.26,172.23,20.0]
[1717694759205,6.6,172.28,172.23,65.0]
[1717694759376,6.057,172.25,172.23,65.0]
[1717694761585,0.8140577,172.33,172.23,65.0]
[1717694761909,0.8140577,172.33,172.24,6.6]
[1717694762105,0.8140577,172.33,172.25,65.0]
[1717694764803,0.8140577,172.33,172.18,125.811]
[1717694765002,0.8140577,172.33,172.16,7.86838945]
[1717694765003,6.6,172.25,172.19,30.0]
[1717694765206,6.6,172.25,172.19,36.6]
[1717694765702,2.1473,172.31,172.2,6.6]
[1717694765703,6.6,172.26,172.2,6.6]
[1717694766083,6.6,172.26,172.16,18.28589867]
[1717694766394,6.2446,172.3,172.22,6.6]
[1717694766587,6.6,172.27,172.18,120.0]
[1717694766892,6.6,172.27,172.21,6.6]
[1717694767214,6.2355,172.26,172.22,65.0]
[1717694767421,6.3378,172.25,172.22,20.0]
[1717694767603,6.3378,172.25,172.2,6.6]
[1717694767915,6.3378,172.25,172.21,65.0]
[1717694768902,16.6393,172.24,172.21,65.0]
[1717694769104,22.754,172.28,172.21,20.0]
[1717694769301,6.1147,172.25,172.21,20.0]
[1717694769499,12.7147,172.25,172.19,6.6]
[1717694769700,6.1147,172.24,172.2,65.0]
[1717694770394,6.1147,172.24,172.2,20.0]
[1717694770800,23.2393,172.25,172.2,20.0]
[1717694771022,6.6,172.24,172.16,20.0]
[1717694771220,6.6,172.24,172.18,6.6]
[1717694771424,6.3159,172.23,172.19,65.0]
[1717694771917,6.0932,172.28,172.19,65.0]
[1717694772128,6.6,172.24,172.19,65.0]
[1717694772513,13.149,172.24,172.19,65.0]
[1717694772997,6.549,172.23,172.19,65.0]
[1717694773618,6.549,172.23,172.19,20.0]
[1717694774920,6.549,172.23,172.18,6.6]
[1717694775117,6.549,172.23,172.19,20.0]
[1717694775496,6.5832,172.22,172.19,20.0]
[1717694775736,6.5832,172.22,172.18,20.0]
[1717694776731,6.5832,172.22,172.18,26.6]
[1717694777303,6.6,172.24,172.18,26.6]
[1717694777517,6.6,172.24,172.19,45.0]
[1717694777717,6.6,172.26,172.2,26.6]
[1717694777926,12.5694,172.25,172.2,20.0]
[1717694778231,6.1694,172.25,172.2,20.0]
[1717694778442,12.7694,172.25,172.2,20.0]
[1717694778926,6.1694,172.25,172.2,20.0]
[1717694779107,12.7694,172.25,172.2,20.0]
[1717694779307,6.1694,172.25,172.2,20.0]
[1717694779507,12.7694,172.25,172.2,20.0]
[1717694781816,6.6,172.24,172.2,20.0]
[1717694782139,6.6,172.25,172.2,20.0]
[1717694782928,0.34,172.29,172.2,26.6]
[1717694783246,6.6,172.26,172.2,26.6]
[1717694784106,0.34,172.29,172.2,26.6]
[1717694784309,0.17,172.29,172.2,26.6]
[1717694784546,6.6,172.27,172.21,51.6]
[1717694784721,6.6,172.27,172.22,20.0]
[1717694784919,6.238,172.3,172.22,26.6]
[1717694785124,6.6,172.29,172.23,6.6]
[1717694785439,6.6,172.29,172.24,20.0]
[1717694786424,6.6,172.29,172.23,6.6]
[1717694786742,6.238,172.3,172.24,20.0]
[1717694787035,6.6,172.29,172.24,20.0]
[1717694787741,6.6,172.28,172.24,20.0]
[1717694787918,6.6,172.28,172.23,20.0]
[1717694788113,0.8140577,172.33,172.23,20.0]
[1717694788424,6.6,172.29,172.24,45.0]
[1717694788624,6.6,172.29,172.25,20.0]
[1717694792438,0.8140577,172.33,172.25,42.3787]
[1717694792622,7.4140577,172.33,172.27,6.6]
[1717694792823,7.4140577,172.33,172.28,20.0]
[1717694793842,0.8140577,172.33,172.28,20.0]
[1717694794028,7.4140577,172.33,172.28,20.0]
[1717694794723,7.4140577,172.33,172.27,26.6]
[1717694795236,0.8140577,172.33,172.27,26.6]
[1717694795538,7.4140577,172.33,172.28,45.0]
[1717694795756,7.4140577,172.33,172.29,20.0]
[1717694796339,0.8140577,172.33,172.29,20.0]
[1717694796544,0.8140577,172.33,172.3,45.0]
[1717694796838,0.8140577,172.33,172.31,20.0]
[1717694797214,0.8140577,172.33,172.3,20.0]
[1717694797618,0.8140577,172.33,172.3,26.6]
[1717694797832,0.8140577,172.33,172.3,20.0]
[1717694798030,0.8140577,172.33,172.3,6.6]
[1717694798235,0.8140577,172.33,172.31,20.0]
[1717694798819,0.8140577,172.33,172.3,20.0]
[1717694799223,0.8140577,172.33,172.22,6.2223]
[1717694799224,6.6,172.32,172.22,6.2223]
[1717694799451,6.6,172.31,172.26,6.6]
[1717694799854,6.6,172.32,172.26,6.6]
[1717694800037,0.8140577,172.33,172.27,6.6]
[1717694800038,7.4140577,172.33,172.27,6.6]
[1717694800528,0.8140577,172.33,172.27,6.6]
[1717694800716,0.8140577,172.33,172.23,120.0]
[1717694800924,0.8140577,172.33,172.24,0.34]
[1717694801125,0.8140577,172.33,172.3,6.6]
[1717694801325,0.8140577,172.33,172.31,20.0]
[1717694803127,0.8140577,172.33,172.27,20.0]
[1717694803349,0.8140577,172.33,172.28,45.0]
[1717694803656,0.8140577,172.33,172.29,20.0]
[1717694803828,0.8140577,172.33,172.29,26.6]
[1717694804941,0.8140577,172.33,172.29,20.0]
[1717694805143,0.8140577,172.33,172.28,6.6]
[1717694805445,0.8140577,172.33,172.29,20.0]
[1717694805653,0.8140577,172.33,172.25,20.0]
[1717694805856,0.8140577,172.33,172.28,6.6]
[1717694806061,0.8140577,172.33,172.29,20.0]
[1717694806359,0.8140577,172.33,172.29,26.6]
[1717694810646,0.8140577,172.33,172.3,6.6]
[1717694810846,0.8140577,172.33,172.31,20.0]
[1717694811049,0.8140577,172.33,172.29,26.6]
[1717694813563,0.8140577,172.33,172.29,20.0]
[1717694813977,0.8140577,172.33,172.3,0.34448544]
[1717694814473,0.8140577,172.33,172.29,26.6]
[1717694816159,0.8140577,172.33,172.29,20.0]
[1717694816460,0.8140577,172.33,172.29,6.6]
[1717694816650,0.8140577,172.33,172.3,20.0]
[1717694817447,0.8140577,172.33,172.3,26.6]
[1717694818071,0.8140577,172.33,172.31,6.6]
[1717694818252,0.8140577,172.33,172.32,20.0]
[1717694818946,0.8140577,172.33,172.27,20.0]
[1717694819147,0.8140577,172.33,172.28,45.0]
[1717694819363,0.8140577,172.33,172.29,20.0]
[1717694820360,0.8140577,172.33,172.3,45.0]
[1717694820568,0.8140577,172.33,172.31,20.0]
[1717694821242,0.8140577,172.33,172.27,20.0]
[1717694821447,0.8140577,172.33,172.3,6.6]
[1717694821664,0.8140577,172.33,172.31,26.6]
[1717694822050,0.8140577,172.33,172.31,20.0]
[1717694822248,0.8140577,172.33,172.28,45.0]
[1717694822249,0.8140577,172.33,172.3,6.6]
[1717694822455,0.8140577,172.33,172.31,22.31928289]
[1717694823039,0.8140577,172.33,172.31,20.0]
[1717694823243,0.8140577,172.33,172.29,20.0]
[1717694823443,0.8140577,172.33,172.3,45.0]
[1717694823670,0.8140577,172.33,172.31,20.0]
[1717694824377,0.8140577,172.33,172.32,6.6]
[1717694824675,0.8140577,172.33,172.32,71.6]
[1717694825054,0.8140577,172.33,172.32,65.0]
[1717694825566,0.8140577,172.33,172.32,71.6]
[1717694826656,0.8140577,172.33,172.32,65.0]
[1717694826965,0.8140577,172.33,172.32,71.6]
[1717694827348,0.8140577,172.33,172.3,6.6]
[1717694827562,0.8140577,172.33,172.31,45.0]
[1717694827752,0.8140577,172.33,172.27,7.86838945]
[1717694828059,0.8140577,172.33,172.3,6.6]
[1717694828654,0.8140577,172.33,172.24,132.6822]
[1717694828855,0.8140577,172.33,172.25,30.0]
[1717694829068,0.8140577,172.33,172.28,6.6]
[1717694829369,0.8140577,172.33,172.24,131.8932]
[1717694829973,13.5551577,172.33,172.27,6.6]
[1717694830862,6.9551577,172.33,172.28,6.6]
[1717694831043,0.8140577,172.33,172.29,71.6]
[1717694831245,0.8140577,172.33,172.31,6.6]
[1717694831467,0.8140577,172.33,172.32,20.0]
[1717694831674,0.8140577,172.33,172.32,26.6]
[1717694832059,0.8140577,172.33,172.32,20.0]
[1717694832258,0.8140577,172.33,172.32,6.6]
[1717694832459,0.8140577,172.33,172.32,26.6]
[1717694834559,0.3846847,172.37,172.32,26.6]
[1717694834560,0.3846847,172.37,172.32,191.1793]
[1717694834775,0.3846847,172.37,172.36,6.6]
[1717694835076,0.3846847,172.37,172.36,51.6]
[1717694835258,0.3846847,172.37,172.36,71.6]
[1717694836057,0.3846847,172.37,172.36,20.0]
[1717694836251,0.3846847,172.37,172.32,20.0]
[1717694836478,0.3846847,172.37,172.36,6.6]
[1717694836690,0.3846847,172.37,172.36,26.6]
[1717694837057,0.3846847,172.37,172.36,6.6]
[1717694837255,0.3846847,172.37,172.3,6.6]
[1717694837460,6.9846847,172.37,172.3,6.6]
[1717694837962,6.9846847,172.37,172.24,6.4735]
[1717694837963,0.3846847,172.37,172.24,126.4735]
[1717694838174,6.6,172.34,172.24,126.4735]
[1717694838365,6.6,172.34,172.28,6.6]
[1717694838562,0.3846847,172.37,172.28,6.6]
[1717694838764,6.6,172.35,172.29,6.6]
[1717694839580,0.3846847,172.37,172.29,6.6]
[1717694839758,6.6,172.35,172.29,6.6]
[1717694840372,0.3846847,172.37,172.24,126.4735]
[1717694840577,6.6,172.35,172.29,6.6]
[1717694840772,0.3846847,172.37,172.29,6.6]
[1717694840971,6.6,172.35,172.29,6.6]
[1717694841283,6.4905,172.34,172.3,20.0]
[1717694842368,6.4905,172.34,172.26,20.0]
[1717694842563,0.3846847,172.37,172.28,6.6]
[1717694842770,0.3846847,172.37,172.29,65.0]
[1717694843382,0.3846847,172.37,172.31,6.6]
[1717694843554,13.2948847,172.37,172.32,20.0]
[1717694844371,15.7797,172.36,172.32,20.0]
[1717694844571,12.9539,172.35,172.32,20.0]
[1717694844873,12.9539,172.35,172.28,6.6]
[1717694844874,6.6,172.34,172.28,6.6]
[1717694845081,6.6,172.34,172.29,20.0]
[1717694845387,6.6,172.34,172.25,20.0]
[1717694845565,6.6,172.34,172.28,6.6]
[1717694845763,13.074,172.34,172.29,20.0]
[1717694847286,6.474,172.34,172.29,20.0]
[1717694847586,15.7797,172.36,172.31,6.6]
[1717694847759,22.1937,172.36,172.32,20.0]
[1717694847958,6.414,172.34,172.24,12.89288945]
[1717694848270,6.414,172.34,172.23,5.811]
[1717694848271,6.6,172.32,172.23,5.811]
[1717694848497,6.6,172.32,172.26,6.6]
[1717694848786,6.6,172.32,172.23,5.811]
[1717694848965,6.6,172.32,172.26,6.6]
[1717694850394,6.0867,172.31,172.27,20.0]
[1717694851867,6.0867,172.31,172.26,6.6]
[1717694852063,6.0867,172.31,172.27,20.0]
[1717694852387,6.0867,172.31,172.26,6.6]
[1717694852578,6.0867,172.31,172.27,20.0]
[1717694853091,0.3846847,172.37,172.28,6.6]
[1717694853289,0.3846847,172.37,172.27,26.3697]
[1717694853290,6.9846847,172.37,172.29,65.0]
[1717694853775,6.6,172.36,172.3,6.6]
[1717694854078,6.6,172.36,172.29,65.0]
[1717694854079,0.3846847,172.37,172.31,26.6]
[1717694854296,7.0274847,172.37,172.32,18.0]
[1717694854498,13.6274847,172.37,172.32,18.0]
[1717694854789,7.0274847,172.37,172.32,24.6]
[1717694854968,7.0274847,172.37,172.32,6.6]
[1717694855586,7.0274847,172.37,172.31,6.6]
[1717694855790,13.6274847,172.37,172.31,6.6]
[1717694856489,13.6274847,172.37,172.32,20.0]
[1717694859692,13.6274847,172.37,172.31,6.6]
[1717694859866,13.6274847,172.37,172.32,20.0]
[1717694860066,13.6274847,172.37,172.31,6.6]
[1717694860266,13.6274847,172.37,172.32,20.0]
[1717694860484,7.0274847,172.37,172.32,20.0]
[1717694860693,13.6274847,172.37,172.32,20.0]
[1717694861374,13.6274847,172.37,172.31,6.6]
[1717694861568,6.2492,172.36,172.32,20.0]
[1717694863270,0.3846847,172.37,172.35,6.6]
[1717694863591,0.3846847,172.37,172.36,26.6]
[1717694864085,0.3846847,172.37,172.36,20.0]
[1717694864598,0.3846847,172.37,172.32,26.6]
[1717694865180,0.3846847,172.37,172.33,6.6]
[1717694865379,0.3846847,172.37,172.32,20.0]
[1717694865690,0.3846847,172.37,172.33,6.6]
[1717694865875,0.3846847,172.37,172.34,20.0]
[1717694866277,0.3846847,172.37,172.3,20.0]
[1717694866478,0.3846847,172.37,172.33,6.6]
[1717694866879,0.3846847,172.37,172.34,20.0]
[1717694867775,0.3846847,172.37,172.34,26.6]
[1717694868202,0.3846847,172.37,172.34,20.0]
[1717694868903,0.3846847,172.37,172.34,26.6]
[1717694869294,0.3846847,172.37,172.34,20.0]
[1717694869604,0.3846847,172.37,172.34,6.6]
[1717694869906,6.6,172.35,172.28,4.59448121]
[1717694870086,6.6,172.35,172.29,6.6]
[1717694870279,6.1868,172.36,172.29,6.6]
[1717694870471,6.6,172.35,172.25,161.41242325]
[1717694870675,6.6,172.35,172.26,30.0]
[1717694870878,6.6,172.35,172.29,6.6]
[1717694871412,6.1868,172.36,172.31,6.6]
[1717694873581,6.1868,172.36,172.27,120.0]
[1717694873900,6.1868,172.36,172.31,6.6]
[1717694874103,6.6,172.36,172.3,6.6]
[1717694874304,6.6,172.35,172.28,45.0]
[1717694874499,6.6,172.35,172.29,20.0]
[1717694874693,6.6,172.35,172.29,26.6]
[1717694875197,6.6,172.35,172.29,20.0]
[1717694875601,6.9373847,172.37,172.29,26.6]
[1717694875801,6.6,172.35,172.29,26.6]
[1717694876522,6.6,172.35,172.29,6.6]
[1717694876807,6.6,172.32,172.26,6.6]
[1717694878907,13.2567,172.31,172.26,6.6]
[1717694879081,6.6567,172.31,172.26,6.6]
[1717694879583,6.6567,172.31,172.27,6.6]
[1717694880812,6.6,172.32,172.27,6.6]
[1717694880980,6.6958847,172.37,172.31,6.6]
[1717694881180,6.3112,172.36,172.32,6.6]
[1717694881489,6.3112,172.36,172.31,6.6]
[1717694882192,6.3112,172.36,172.32,6.6]
[1717694884892,23.4715847,172.37,172.31,120.0]
[1717694884893,0.3846847,172.37,172.31,120.0]
[1717694885098,0.3846847,172.37,172.36,6.6]
[1717694887608,0.3846847,172.37,172.3,41.40040572]
[1717694887609,6.5071847,172.37,172.3,41.40040572]
[1717694887814,6.5071847,172.37,172.33,6.6]
[1717694888007,6.5071847,172.37,172.34,20.0]
[1717694888515,0.3846847,172.37,172.34,26.6]
[1717694888709,0.3846847,172.37,172.34,6.6]
[1717694888909,0.3846847,172.37,172.36,6.6]
[1717694889111,0.3846847,172.37,172.35,6.6]
[1717694889409,0.3846847,172.37,172.36,12.7704]
[1717694889614,6.6,172.46,172.36,198.1104]
[1717694889813,6.6,172.46,172.4,6.6]
[1717694890010,6.6,172.46,172.41,20.0]
[1717694890193,6.5489,172.45,172.41,20.0]
[1717694891100,13.1489,172.45,172.41,20.0]
[1717694892399,6.5489,172.45,172.41,20.0]
[1717694892604,13.1489,172.45,172.41,20.0]
[1717694893817,6.5489,172.45,172.41,20.0]
[1717694894204,6.4117,172.55,172.42,41.37159207]
[1717694894405,7.4140577,172.51,172.45,6.6]
[1717694894604,7.4140577,172.51,172.41,20.0]
[1717694894605,6.6,172.49,172.41,20.0]
[1717694894808,0.8140577,172.51,172.43,6.6]
[1717694895006,12.8346,172.49,172.44,20.0]
[1717694895203,12.8346,172.49,172.41,20.0]
[1717694895204,6.2346,172.48,172.41,20.0]
[1717694895408,6.6,172.47,172.41,26.6]
[1717694895809,6.6,172.47,172.41,6.6]
[1717694896017,6.6,172.44,172.38,6.6]
[1717694896309,6.6,172.44,172.37,30.0]
[1717694896516,6.5746,172.48,172.38,6.6]
[1717694896719,6.6,172.44,172.38,6.6]
[1717694897110,6.6,172.45,172.39,6.6]
[1717694897299,12.8346,172.45,172.4,20.0]
[1717694897507,12.8346,172.45,172.36,46.03085734]
[1717694897508,12.8346,172.45,172.39,6.6]
[1717694897706,12.8346,172.45,172.4,20.0]
[1717694898398,12.6542,172.44,172.4,20.0]
[1717694898596,12.6542,172.44,172.26,26.4]
[1717694898597,6.6,172.43,172.32,41.39560066]
[1717694898796,6.6,172.42,172.36,6.6]
[1717694900221,13.2157,172.42,172.37,20.0]
[1717694901320,6.6,172.4,172.31,125.811]
[1717694901496,6.6,172.4,172.34,6.6]
[1717694901698,12.6049,172.4,172.35,45.0]
[1717694902716,12.6049,172.4,172.31,120.0]
[1717694902912,12.6049,172.4,172.32,45.0]
[1717694903210,12.6049,172.4,172.34,6.6]
[1717694904320,6.0049,172.4,172.34,6.6]
[1717694904523,6.6,172.39,172.32,45.0]
[1717694904700,6.6,172.38,172.31,45.0]
[1717694904897,6.4231,172.42,172.26,38.3797]
[1717694904898,6.6,172.35,172.26,126.1687]
[1717694905101,6.6,172.35,172.27,30.0]
[1717694905600,6.6,172.35,172.28,6.6]
[1717694905801,6.6,172.34,172.28,6.6]
[1717694907013,6.6,172.34,172.29,45.0]
[1717694907317,13.09,172.34,172.29,45.0]
[1717694909227,12.8851,172.33,172.25,46.13901136]
[1717694909423,6.2851,172.33,172.27,6.6]
[1717694909603,6.2851,172.33,172.28,6.6]
[1717694910020,6.6,172.34,172.28,6.6]
[1717694910216,6.6,172.3,172.23,5.811]
[1717694910405,6.6,172.3,172.24,6.6]
[1717694910607,6.0381,172.31,172.23,5.811]
[1717694910608,6.6,172.29,172.23,5.811]
[1717694910831,6.6,172.29,172.23,12.411]
[1717694911529,6.2897,172.28,172.24,45.0]
[1717694912205,6.6,172.28,172.23,5.811]
[1717694912404,22.7439,172.26,172.23,5.811]
[1717694912604,6.1219,172.25,172.23,5.811]
[1717694912832,6.1219,172.24,172.23,5.811]
[1717694914333,6.1219,172.24,172.2,5.811]
[1717694915812,6.1219,172.24,172.17,120.0]
[1717694915813,6.1219,172.24,172.21,5.811]
[1717694917036,6.1219,172.24,172.16,5.811]
[1717694917235,6.1219,172.24,172.18,5.811]
[1717694917539,6.1219,172.24,172.2,5.811]
[1717694917831,21.8173,172.31,172.2,5.811]
[1717694917832,22.3418,172.3,172.2,5.811]
[1717694918040,6.4375,172.3,172.22,5.811]
[1717694918241,6.4375,172.3,172.23,50.811]
[1717694918415,6.4375,172.3,172.23,5.811]
[1717694918733,6.4375,172.3,172.24,45.0]
[1717694919438,6.4375,172.3,172.23,50.811]
[1717694921939,6.4375,172.3,172.23,45.0]
[1717694922234,6.4375,172.3,172.22,45.0]
[1717694922835,6.541,172.39,172.23,120.0]
[1717694923038,6.541,172.39,172.27,120.0]
[1717694923239,6.541,172.39,172.28,45.0]
[1717694928632,6.0217,172.43,172.31,120.0]
[1717694928838,6.0217,172.43,172.32,65.0]
[1717694931244,0.34,172.42,172.32,65.0]
[1717694935045,0.34,172.42,172.28,6.4551]
[1717694935243,0.34,172.42,172.27,120.0]
[1717694936363,20.01,172.42,172.27,120.0]
[1717694936534,20.01,172.42,172.28,45.0]
[1717694937432,22.156,172.42,172.28,45.0]
[1717694937626,20.01,172.42,172.28,45.0]
[1717694939851,22.1559,172.42,172.28,45.0]
[1717694940228,20.01,172.42,172.28,45.0]
[1717694940542,22.1559,172.42,172.28,45.0]
[1717694940734,20.01,172.42,172.28,45.0]
[1717694940930,22.1559,172.42,172.28,45.0]
[1717694941136,20.01,172.42,172.28,45.0]
[1717694941654,22.5641,172.41,172.28,45.0]
[1717694941861,6.55,172.34,172.28,51.55]
[1717694942032,6.55,172.34,172.28,45.0]
[1717694942233,6.55,172.34,172.28,51.55]
[1717694943136,6.55,172.34,172.28,45.0]
[1717694943339,6.55,172.34,172.28,51.55]
[1717694943745,6.55,172.32,172.28,45.0]
[1717694944061,6.5727,172.31,172.28,45.0]
[1717694944261,6.5727,172.31,172.27,45.0]